bitfinex-derivatives/quotes_SOLF0:USTF0_20240902
["timestamp","ask_amount","ask_price","bid_price","bid_amount"]
[1725295062226,3.7727,132.53,132.49,3.7735]
[1725295062424,0.04863433,132.52,132.49,3.7735]
[1725295062821,3.82143433,132.52,132.49,3.7735]
[1725295063735,3.82143433,132.52,132.48,32.7638]
[1725295064233,3.82143433,132.52,132.49,3.7736]
[1725295064828,0.04863433,132.52,132.5,3.7733]
[1725295066322,3.82143433,132.52,132.5,3.7733]
[1725295066730,3.82143433,132.52,132.49,3.7735]
[1725295068033,3.7731,132.51,132.49,3.7735]
[1725295068424,3.7731,132.51,132.48,3.7738]
[1725295068837,3.7734,132.5,132.48,3.7738]
[1725295069539,3.7734,132.5,132.47,1.3351]
[1725295069937,3.7733,132.51,132.48,3.7738]
[1725295070139,0.04863433,132.52,132.44,1.3502]
[1725295070335,0.05105429,132.49,132.46,28.99]
[1725295070637,0.05498617,132.49,132.47,3.7741]
[1725295071937,0.05498617,132.49,132.48,32.7639]
[1725295073940,3.7726,132.53,132.5,3.7732]
[1725295074841,3.82495527,132.53,132.5,3.7732]
[1725295077941,3.7728,132.52,132.49,0.05498617]
[1725295078848,3.7728,132.52,132.49,3.82838617]
[1725295079747,3.7728,132.52,132.5,3.7733]
[1725295080256,3.7728,132.52,132.49,3.82848617]
[1725295080835,3.7731,132.51,132.49,0.05498617]
[1725295081140,32.76887111,132.53,132.49,0.05498617]
[1725295081356,3.7733,132.5,132.49,0.05498617]
[1725295082652,3.7744,132.47,132.42,28.99]
[1725295082951,28.99,132.51,132.42,28.99]
[1725295083351,3.7743,132.47,132.43,3.7751]
[1725295083842,0.05702954,132.46,132.43,3.7751]
[1725295084044,0.05702954,132.46,132.44,3.7751]
[1725295085446,3.83162954,132.46,132.43,3.7752]
[1725295087152,3.7748,132.45,132.43,3.7752]
[1725295089557,3.7748,132.45,132.42,32.7655]
[1725295089847,3.7751,132.44,132.39,28.99]
[1725295090050,0.05032854,132.43,132.42,3.7756]
[1725295091756,0.05032854,132.43,132.41,3.7758]
[1725295092151,0.05032854,132.43,132.38,1.4028]
[1725295092347,0.05032854,132.43,132.37,3.7192415]
[1725295092553,0.05032854,132.43,132.36,1.4031]
[1725295092750,3.7763,132.4,132.37,3.7769]
[1725295092959,3.83036696,132.4,132.37,3.7769]
[1725295093359,3.7768,132.39,132.36,3.7772]
[1725295093560,0.05406696,132.4,132.35,28.99]
[1725295093757,0.05406696,132.4,132.35,32.85119921]
[1725295094055,0.05406696,132.4,132.35,3.86119921]
[1725295094260,29.04406696,132.4,132.34,1.4179]
[1725295094452,29.04406696,132.4,132.31,32.7686]
[1725295094453,3.7776,132.36,132.31,32.7686]
[1725295094657,3.7776,132.36,132.31,28.99]
[1725295095262,0.04965393,132.35,132.32,3.7783]
[1725295095456,0.04965393,132.35,132.31,28.99]
[1725295096273,0.04965393,132.35,132.29,2.7633]
[1725295096560,0.04965393,132.35,132.29,31.7533]
[1725295097365,0.04965393,132.35,132.29,2.7633]
[1725295097656,0.04965393,132.35,132.28,32.74774052]
[1725295097862,29.03965393,132.35,132.23,2.7369]
[1725295098064,1.3275,132.37,132.24,28.99]
[1725295098065,0.05377782,132.3,132.24,28.99]
[1725295098864,0.05377782,132.3,132.24,32.76483944]
[1725295099263,0.05377782,132.3,132.26,3.7801]
[1725295099463,0.05377782,132.3,132.24,28.99]
[1725295099667,3.7798,132.28,132.24,32.7706]
[1725295099965,0.05490214,132.27,132.23,3.71920476]
[1725295100159,3.7807,132.25,132.21,1.3387]
[1725295100359,28.99,132.29,132.21,5.05374795]
[1725295100360,0.05019816,132.24,132.21,5.05374795]
[1725295100752,0.05019816,132.24,132.22,3.7812]
[1725295101365,0.05019816,132.24,132.23,3.7811]
[1725295103358,3.7797,132.28,132.24,3.7806]
[1725295103558,3.7789,132.31,132.24,28.99]
[1725295103765,3.7789,132.31,132.27,3.7798]
[1725295103969,1.468,132.32,132.27,3.7798]
[1725295104261,0.05571018,132.31,132.28,0.05019816]
[1725295105054,3.83461018,132.31,132.28,0.05019816]
[1725295105261,0.05571018,132.31,132.28,0.05019816]
[1725295106160,32.7693,132.29,132.28,0.05019816]
[1725295107066,32.7693,132.29,132.21,1.3387]
[1725295107067,28.99,132.29,132.21,1.3387]
[1725295107270,28.99,132.27,132.2,3.7817]
[1725295107968,3.83193439,132.25,132.2,3.7817]
[1725295108171,0.05123439,132.25,132.2,3.7817]
[1725295108560,0.05123439,132.25,132.19,3.7821]
[1725295108761,0.05123439,132.25,132.14,3.79247847]
[1725295108958,3.7824,132.19,132.15,3.7831]
[1725295109164,0.05036095,132.18,132.04,162.499]
[1725295109465,0.05222658,132.12,132.11,3.7845]
[1725295109668,0.05365663,132.13,132.08,28.99]
[1725295110063,28.99,132.18,132.08,28.99]
[1725295110064,3.7836,132.15,132.08,28.99]
[1725295110268,28.99,132.16,132.07,28.99]
[1725295110559,28.99,132.16,132.05,3.2365]
[1725295110560,28.99,132.14,132.05,2.7961]
[1725295110761,1.4631,132.2,132.06,28.99]
[1725295110958,1.4631,132.2,132.05,2.7961]
[1725295110959,28.99,132.18,132.08,28.99]
[1725295111172,3.7839,132.14,132.05,6.50554566]
[1725295111368,28.99,132.15,132.05,6.50554566]
[1725295111556,1.4645,132.13,132.05,35.49554566]
[1725295111761,3.7848,132.11,132.06,3.7857]
[1725295111966,0.05435112,132.12,132.05,35.49554566]
[1725295112266,3.7845,132.12,132.07,3.7854]
[1725295112469,0.05166322,132.1,132.07,3.7854]
[1725295113074,0.05166322,132.1,132.01,28.99]
[1725295113264,28.99,132.11,132.01,32.71152622]
[1725295113265,0.05243162,132.07,132.01,32.71152622]
[1725295113666,0.05243162,132.07,132.03,3.7866]
[1725295114273,0.05243162,132.07,132.03,28.99]
[1725295114476,0.05243162,132.07,132.05,28.99]
[1725295114676,0.05243162,132.07,132.06,2.7262]
[1725295114969,0.05243162,132.07,132.01,3.72152622]
[1725295115168,0.05243162,132.07,132.06,28.99]
[1725295115373,3.7837,132.14,132.09,3.7848]
[1725295115973,3.7837,132.14,132.02,1.345]
[1725295115974,3.7842,132.12,132.02,1.345]
[1725295116271,0.058058,132.08,132.06,29.03832815]
[1725295116571,3.7837,132.14,132.09,3.7848]
[1725295116770,0.0497717,132.13,132.1,0.04803055]
[1725295117675,0.0497717,132.13,132.1,29.03803055]
[1725295117974,0.0497717,132.13,132.1,36.37803055]
[1725295118874,0.0497717,132.13,132.12,3.7842]
[1725295119265,2.8631,132.2,132.1,36.33]
[1725295119469,1.465,132.2,132.12,36.33]
[1725295119669,1.465,132.2,132.11,36.33]
[1725295120773,0.05790547,132.17,132.14,0.05017231]
[1725295121270,0.05790547,132.17,132.14,3.83367231]
[1725295121471,0.05790547,132.17,132.14,0.05017231]
[1725295121872,0.05790547,132.17,132.15,3.7833]
[1725295122073,0.05790547,132.17,132.14,0.05017231]
[1725295122274,36.38790547,132.17,132.14,0.05017231]
[1725295122474,3.84080547,132.17,132.14,0.05017231]
[1725295122673,0.05790547,132.17,132.14,0.05017231]
[1725295122973,3.7832,132.16,132.14,0.05017231]
[1725295123173,0.05790547,132.17,132.14,0.05017231]
[1725295123472,3.84070547,132.17,132.14,0.05017231]
[1725295123873,0.05790547,132.17,132.14,0.05017231]
[1725295124378,0.05790547,132.17,132.15,3.7833]
[1725295125373,0.05790547,132.17,132.16,3.7831]
[1725295125982,0.05790547,132.17,132.14,3.83367231]
[1725295126280,0.05790547,132.17,132.14,0.05017231]
[1725295126477,0.05790547,132.17,132.14,3.83357231]
[1725295126872,0.05790547,132.17,132.14,0.05017231]
[1725295127073,0.05790547,132.17,132.15,3.7833]
[1725295128179,0.05790547,132.17,132.16,3.7831]
[1725295128372,0.05790547,132.17,132.14,0.05017231]
[1725295130873,3.7833,132.15,132.14,0.05017231]
[1725295132782,3.7832,132.16,132.14,0.05017231]
[1725295132984,0.05790547,132.17,132.14,0.05017231]
[1725295133393,0.05790547,132.17,132.15,3.7831]
[1725295133588,0.05790547,132.17,132.14,0.05017231]
[1725295134690,3.84080547,132.17,132.14,0.05017231]
[1725295135191,3.7833,132.16,132.14,0.05017231]
[1725295135392,0.05790547,132.17,132.14,0.05017231]
[1725295135783,3.7833,132.15,132.14,0.05017231]
[1725295141291,31.8125,132.16,132.07,2.8975]
[1725295141487,30.5095,132.14,132.07,2.8975]
[1725295141683,1.4295,132.14,132.09,3.7849]
[1725295141890,1.3535,132.16,132.08,29.08]
[1725295142191,0.05499195,132.13,132.12,3.784]
[1725295142392,0.05730911,132.14,132.11,0.05039142]
[1725295142989,0.05730911,132.14,132.12,7.50950115]
[1725295144188,0.05730911,132.14,132.11,0.05039142]
[1725295146191,3.7842,132.12,132.11,0.05039142]
[1725295148895,3.7841,132.13,132.11,0.05039142]
[1725295149093,0.05730911,132.14,132.11,0.05039142]
[1725295150305,0.05730911,132.14,132.11,29.13039142]
[1725295152403,0.05730911,132.14,132.13,3.7839]
[1725295155207,3.84090911,132.14,132.12,3.7842]
[1725295155411,0.05730911,132.14,132.12,3.7842]
[1725295156910,0.05730911,132.14,132.11,29.13039142]
[1725295156911,0.05730911,132.14,132.13,3.7839]
[1725295157913,27.83895292,132.34,132.13,29.08]
[1725295158103,1.3936,132.23,132.15,29.08]
[1725295158715,3.7821,132.2,132.16,3.69240408]
[1725295158915,0.05487639,132.19,132.17,0.05502752]
[1725295159213,3.83707639,132.19,132.17,0.05502752]
[1725295159411,32.8617076,132.19,132.09,1.3248]
[1725295159617,1.4152,132.18,132.09,1.3248]
[1725295159814,3.7837,132.14,132.09,1.3248]
[1725295160407,0.05534405,132.13,132.1,0.0543126]
[1725295160719,3.83924405,132.13,132.1,0.0543126]
[1725295161010,0.05534405,132.13,132.11,3.7845]
[1725295162222,0.05534405,132.13,132.12,32.8642]
[1725295163010,3.7829,132.17,132.14,3.7835]
[1725295163820,3.7826,132.18,132.12,29.08]
[1725295164213,0.05727356,132.16,132.15,3.7832]
[1725295165820,0.05727356,132.16,132.14,3.83669542]
[1725295166419,0.05727356,132.16,132.15,3.7833]
[1725295167125,0.05727356,132.16,132.14,0.05319542]
[1725295167126,0.05727356,132.16,132.14,3.83669542]
[1725295167824,0.05727356,132.16,132.15,3.7833]
[1725295172127,0.05727356,132.16,132.15,36.7059847]
[1725295172331,2.8717,132.22,132.18,3.7825]
[1725295172624,2.8717,132.22,132.16,3.83322741]
[1725295172831,2.8717,132.22,132.17,3.7825]
[1725295173424,3.7818,132.21,132.18,3.7825]
[1725295174430,3.7818,132.21,132.18,3.8366804]
[1725295174431,3.83526934,132.21,132.18,3.8366804]
[1725295175330,3.83526934,132.21,132.18,0.0541804]
[1725295175540,0.05346934,132.21,132.18,0.0541804]
[1725295176625,3.7821,132.2,132.18,0.0541804]
[1725295177033,3.7822,132.2,132.18,0.0541804]
[1725295177434,0.05346934,132.21,132.18,0.0541804]
[1725295178426,3.7822,132.19,132.18,0.0541804]
[1725295183432,3.7839,132.14,132.11,3.7845]
[1725295183739,6.60464575,132.18,132.11,29.08]
[1725295184037,2.8345,132.18,132.11,29.08]
[1725295184237,3.7834,132.15,132.12,3.7841]
[1725295184533,0.05349902,132.15,132.12,29.12963754]
[1725295184943,0.05349902,132.15,132.14,3.7836]
[1725295186231,1.4398,132.22,132.17,3.7826]
[1725295186432,1.4398,132.22,132.17,32.8626]
[1725295186832,3.7818,132.21,132.17,32.8626]
[1725295187033,3.7818,132.21,132.17,3.7826]
[1725295187244,0.05652102,132.2,132.18,0.05662464]
[1725295187436,3.83852102,132.2,132.18,0.05662464]
[1725295188138,0.05652102,132.2,132.18,0.05662464]
[1725295189137,3.83852102,132.2,132.18,0.05662464]
[1725295189340,0.05652102,132.2,132.18,0.05662464]
[1725295189932,3.83852102,132.2,132.18,0.05662464]
[1725295194042,0.05652102,132.2,132.18,0.05662464]
[1725295194244,3.7822,132.19,132.18,0.05662464]
[1725295197955,3.7831,132.16,132.13,29.08]
[1725295198551,3.7831,132.16,132.12,1.3695]
[1725295199057,0.05263402,132.15,132.13,0.0512299]
[1725295200553,0.05263402,132.15,132.13,3.8351299]
[1725295201256,3.7836,132.14,132.13,0.0512299]
[1725295201940,0.05263402,132.15,132.13,0.0512299]
[1725295201941,3.83603402,132.15,132.13,0.0512299]
[1725295202143,0.05263402,132.15,132.13,0.0512299]
[1725295202648,0.05263402,132.15,132.08,32.83548826]
[1725295202946,3.7846,132.11,132.08,36.62068826]
[1725295203541,3.83518471,132.11,132.08,36.6730166]
[1725295204349,0.05058471,132.11,132.09,3.7848]
[1725295204546,0.05058471,132.11,132.09,29.08]
[1725295205347,0.05058471,132.11,132.09,32.8649]
[1725295206852,0.05058471,132.11,132.1,3.7848]
[1725295207246,0.05058471,132.11,132.09,29.08]
[1725295207545,0.05058471,132.11,132.09,32.8649]
[1725295207746,0.05058471,132.11,132.09,28.4493]
[1725295207945,29.08,132.1,131.98,2.6875]
[1725295208149,29.08,132.1,131.98,35.59414227]
[1725295208453,29.08,132.1,132.0,29.08]
[1725295208750,29.08,132.1,132.0,32.95849405]
[1725295208949,0.05480821,132.06,132.0,32.95849405]
[1725295209147,3.79013129,132.06,132.0,3.87849405]
[1725295209451,0.05480821,132.06,131.99,29.08]
[1725295209754,0.05067107,132.04,131.99,32.80471782]
[1725295210146,0.05067107,132.04,131.92,151.38]
[1725295210346,0.05543554,131.99,131.92,3.73002045]
[1725295210544,0.05543554,131.99,131.91,29.08]
[1725295210749,0.05337502,131.96,131.93,3.7895]
[1725295211056,0.05337502,131.96,131.91,29.08]
[1725295211057,0.04816781,131.96,131.94,5.12642234]
[1725295211258,0.04816781,131.96,131.94,1.4214]
[1725295211565,0.04816781,131.96,131.94,5.23702002]
[1725295211749,0.04816781,131.96,131.94,1.4214]
[1725295212145,0.04816781,131.96,131.94,5.27331849]
[1725295212552,29.08,132.04,131.95,29.08]
[1725295212748,32.77809938,132.06,131.97,29.08]
[1725295213056,32.8413698,132.08,131.99,29.08]
[1725295213358,3.7865,132.04,132.0,1.3479]
[1725295213557,0.0527943,132.03,132.01,0.05567716]
[1725295214161,0.0527943,132.03,132.01,3.81439491]
[1725295215258,3.8395943,132.03,132.01,3.81439491]
[1725295216549,0.0527943,132.03,132.01,3.81439491]
[1725295216750,1.3495,132.09,132.01,32.89439491]
[1725295216957,29.08,132.12,132.03,29.08]
[1725295217255,3.7856,132.08,132.03,32.8666]
[1725295217754,3.7851,132.09,132.03,29.08]
[1725295217957,0.05805239,132.07,132.04,1.47379546]
[1725295218258,29.08,132.12,132.07,3.7855]
[1725295218449,29.08,132.12,132.05,29.08]
[1725295218854,3.785,132.1,132.06,3.7858]
[1725295219253,0.05504918,132.09,132.07,0.05453965]
[1725295219456,0.05360901,132.09,132.08,3.7852]
[1725295219954,0.05360901,132.09,132.07,0.05453965]
[1725295220155,0.05360901,132.09,132.08,3.79391278]
[1725295220368,30.4654,132.14,132.07,0.05453965]
[1725295220656,30.4654,132.14,132.07,3.7855]
[1725295221256,3.7846,132.11,132.09,0.05172471]
[1725295221462,0.05691493,132.12,132.09,0.05172471]
[1725295221857,3.84131493,132.12,132.09,0.05172471]
[1725295222359,0.05691493,132.12,132.09,3.83672471]
[1725295223356,3.84111493,132.12,132.09,0.05172471]
[1725295223562,0.05691493,132.12,132.09,0.05172471]
[1725295225058,3.84141493,132.12,132.09,0.05172471]
[1725295225459,0.05691493,132.12,132.09,0.05172471]
[1725295225860,3.7847,132.11,132.09,0.05172471]
[1725295227163,3.84121493,132.12,132.09,3.83672471]
[1725295228063,3.84121493,132.12,132.1,3.7848]
[1725295228263,0.05691493,132.12,132.1,3.7848]
[1725295228665,0.05691493,132.12,132.11,3.7845]
[1725295229371,0.05691493,132.12,132.1,3.7847]
[1725295230266,3.7838,132.14,132.11,3.7845]
[1725295230569,3.7838,132.14,132.1,29.08]
[1725295230871,3.7834,132.15,132.12,3.7842]
[1725295231264,0.04902027,132.15,132.12,0.0581993]
[1725295231470,3.7838,132.14,132.12,0.0581993]
[1725295232873,3.83242027,132.15,132.12,0.0581993]
[1725295235471,3.7836,132.14,132.12,0.0581993]
[1725295237181,3.7839,132.13,132.12,0.0581993]
[1725295241276,3.7838,132.14,132.12,0.0581993]
[1725295242380,0.04902027,132.15,132.12,0.0581993]
[1725295242381,0.04902027,132.15,132.14,3.7836]
[1725295242579,0.04902027,132.15,132.14,32.8636]
[1725295242780,31.8636,132.24,132.16,29.08]
[1725295242979,5.17791092,132.23,132.16,36.69985405]
[1725295243583,3.7821,132.2,132.16,36.69985405]
[1725295243786,34.25791092,132.23,132.16,3.7829]
[1725295244084,3.7822,132.19,132.18,0.048447]
[1725295245082,3.782,132.2,132.18,0.048447]
[1725295246480,3.7822,132.19,132.18,0.048447]
[1725295246992,3.83906736,132.21,132.18,0.048447]
[1725295247379,0.05726736,132.21,132.18,0.048447]
[1725295247580,3.7822,132.19,132.18,0.048447]
[1725295248385,3.7821,132.2,132.18,0.048447]
[1725295249097,3.83896736,132.21,132.18,0.048447]
[1725295249782,3.7821,132.2,132.18,0.048447]
[1725295250285,0.05726736,132.21,132.18,0.048447]
[1725295250588,3.7822,132.19,132.18,0.048447]
[1725295252286,3.783,132.17,132.12,29.08]
[1725295252486,29.08,132.21,132.12,29.08]
[1725295252887,3.7827,132.18,132.14,3.7834]
[1725295253383,3.7831,132.16,132.15,0.05192237]
[1725295253583,0.05480987,132.17,132.14,0.05290447]
[1725295253984,3.7835,132.15,132.14,0.05290447]
[1725295255593,3.7832,132.16,132.14,0.05290447]
[1725295256084,0.05480987,132.17,132.14,0.05290447]
[1725295256598,0.05480987,132.17,132.16,3.7831]
[1725295257684,0.05480987,132.17,132.14,0.05290447]
[1725295258389,3.83760987,132.17,132.14,0.05290447]
[1725295258689,0.05480987,132.17,132.14,0.05290447]
[1725295258892,3.7832,132.16,132.14,0.05290447]
[1725295259195,0.05480987,132.17,132.14,0.05290447]
[1725295259393,3.7833,132.16,132.14,0.05290447]
[1725295260092,3.7833,132.15,132.14,0.05290447]
[1725295260886,0.05480987,132.17,132.14,0.05290447]
[1725295261994,0.05480987,132.17,132.15,3.7832]
[1725295263288,0.05480987,132.17,132.16,3.7831]
[1725295264286,0.05480987,132.17,132.14,0.05290447]
[1725295264688,0.05480987,132.17,132.14,3.83630447]
[1725295264896,0.05480987,132.17,132.14,0.05290447]
[1725295265488,3.7832,132.16,132.14,0.05290447]
[1725295266095,0.05480987,132.17,132.14,0.05290447]
[1725295266890,3.7833,132.15,132.14,0.05290447]
[1725295267195,0.05480987,132.17,132.14,0.05290447]
[1725295268396,3.7832,132.16,132.14,0.05290447]
[1725295271195,3.83770987,132.17,132.14,0.05290447]
[1725295272298,3.83770987,132.17,132.14,3.83650447]
[1725295273095,0.05480987,132.17,132.14,0.05290447]
[1725295274302,3.7833,132.15,132.14,0.05290447]
[1725295275002,3.7832,132.16,132.14,0.05290447]
[1725295276100,3.7833,132.15,132.14,0.05290447]
[1725295277395,32.8648061,132.15,132.05,29.08]
[1725295277600,5.22649535,132.14,132.05,29.08]
[1725295277800,3.7844,132.12,132.07,29.08]
[1725295278004,29.08,132.18,132.09,29.08]
[1725295278299,30.4396,132.18,132.1,7.60279575]
[1725295278492,3.7838,132.14,132.12,0.05188466]
[1725295279003,3.7839,132.13,132.12,0.05188466]
[1725295284208,0.04844708,132.15,132.12,0.05188466]
[1725295284711,0.04844708,132.15,132.14,32.8636]
[1725295284915,1.335,132.22,132.14,29.08]
[1725295285205,3.7822,132.19,132.15,3.7832]
[1725295285805,0.05271827,132.18,132.17,3.7826]
[1725295286004,0.05149955,132.19,132.17,7.58574514]
[1725295286208,11.3314,132.37,132.16,29.13605184]
[1725295286404,3.7814,132.22,132.18,32.8623]
[1725295287210,0.05342322,132.21,132.19,0.05275971]
[1725295287413,3.83502322,132.21,132.19,0.05275971]
[1725295288215,0.05342322,132.21,132.19,0.05275971]
[1725295288804,3.7819,132.2,132.19,0.05275971]
[1725295290007,3.83512322,132.21,132.19,0.05275971]
[1725295290214,0.05342322,132.21,132.19,0.05275971]
[1725295291017,3.83522322,132.21,132.19,0.05275971]
[1725295291714,0.05342322,132.21,132.19,3.83475971]
[1725295292118,0.05342322,132.21,132.19,0.05275971]
[1725295292415,3.83512322,132.21,132.19,0.05275971]
[1725295292811,0.05342322,132.21,132.19,0.05275971]
[1725295293415,3.7819,132.2,132.19,0.05275971]
[1725295297220,3.7834,132.15,132.12,1.4317]
[1725295297423,29.08,132.17,132.12,1.4317]
[1725295298230,0.05360675,132.16,132.13,0.04980913]
[1725295299033,3.7835,132.15,132.13,0.04980913]
[1725295300824,3.83680675,132.16,132.13,0.04980913]
[1725295301030,0.05360675,132.16,132.13,0.04980913]
[1725295301336,3.7835,132.15,132.13,0.04980913]
[1725295302631,3.7836,132.14,132.13,0.04980913]
[1725295306721,0.05360675,132.16,132.13,0.04980913]
[1725295308529,0.05360675,132.16,132.14,3.7836]
[1725295308942,0.05360675,132.16,132.13,0.04980913]
[1725295309325,0.05360675,132.16,132.13,3.83360913]
[1725295310140,0.05360675,132.16,132.14,3.7835]
[1725295310339,0.05360675,132.16,132.15,29.08]
[1725295310733,0.05360675,132.16,132.15,32.8633]
[1725295313136,1.4421,132.22,132.15,29.08]
[1725295313439,3.7821,132.2,132.15,29.08]
[1725295314232,0.0525699,132.19,132.16,0.05663984]
[1725295314438,0.0525699,132.19,132.17,3.7095261]
[1725295316433,0.0525699,132.19,132.17,7.4921261]
[1725295320337,0.0525699,132.19,132.17,3.7095261]
[1725295320540,3.8348699,132.19,132.16,1.52543984]
[1725295320943,3.7827,132.18,132.16,1.52543984]
[1725295321135,0.0525699,132.19,132.16,0.05663984]
[1725295321743,3.7828,132.17,132.16,0.05663984]
[1725295323339,3.7826,132.18,132.16,3.84134367]
[1725295323642,3.7826,132.18,132.16,0.05663984]
[1725295323946,3.7826,132.18,132.16,3.76077782]
[1725295325442,0.0525699,132.19,132.16,3.76077782]
[1725295325748,0.0525699,132.19,132.17,3.7825]
[1725295326341,0.0525699,132.19,132.18,3.7825]
[1725295327352,0.0525699,132.19,132.16,0.05663984]
[1725295328152,3.8348699,132.19,132.16,3.83953984]
[1725295328353,0.0525699,132.19,132.16,3.83953984]
[1725295328849,0.0525699,132.19,132.16,7.55275566]
[1725295329850,3.8348699,132.19,132.16,7.55275566]
[1725295332052,3.8348699,132.19,132.17,11.62]
[1725295332860,0.0525699,132.19,132.17,15.4027]
[1725295333559,3.8348699,132.19,132.17,11.62]
[1725295333755,0.0525699,132.19,132.17,11.62]
[1725295334653,22.81791627,132.26,132.18,11.62]
[1725295334854,3.69468189,132.26,132.21,11.62]
[1725295335053,3.7809,132.24,132.21,11.62]
[1725295335652,3.7809,132.24,132.21,15.4016]
[1725295335856,3.7809,132.24,132.21,11.62]
[1725295336160,3.83495644,132.24,132.21,11.67658664]
[1725295336756,3.83495644,132.24,132.23,11.62]
[1725295336757,0.05405644,132.24,132.23,11.62]
[1725295336955,225.0,132.34,132.23,11.62]
[1725295337157,1.09337156,132.31,132.26,11.62]
[1725295337355,73.23275953,132.33,132.26,11.62]
[1725295337356,3.7792,132.3,132.26,11.62]
[1725295337560,5.32568254,132.33,132.28,11.62]
[1725295337867,3.7803,132.26,132.22,3.7812]
[1725295338055,3.7803,132.26,132.24,11.62]
[1725295338255,0.05594685,132.26,132.24,11.67524586]
[1725295338461,3.83614685,132.26,132.24,11.67524586]
[1725295339858,3.7805,132.25,132.24,11.67524586]
[1725295340265,0.05594685,132.26,132.24,11.67524586]
[1725295340564,3.83614685,132.26,132.24,11.67524586]
[1725295341568,0.05594685,132.26,132.24,11.67524586]
[1725295342454,3.83614685,132.26,132.24,11.67524586]
[1725295342662,0.05594685,132.26,132.24,11.67524586]
[1725295342855,0.05594685,132.26,132.24,0.05524586]
[1725295343054,3.7805,132.25,132.24,0.05524586]
[1725295344362,16.85983212,132.26,132.05,4.31074977]
[1725295344666,16.85983212,132.26,132.17,12.9733]
[1725295344667,3.7819,132.2,132.17,12.9733]
[1725295345464,3.83075545,132.2,132.17,13.02966552]
[1725295346067,3.83075545,132.2,132.17,30.45966552]
[1725295346962,3.83075545,132.2,132.17,34.24236552]
[1725295347166,3.7822,132.19,132.17,34.24236552]
[1725295351970,0.04885545,132.2,132.18,29.05]
[1725295353282,0.04885545,132.2,132.18,32.8323]
[1725295353482,0.04885545,132.2,132.18,29.05]
[1725295353779,3.7822,132.19,132.18,29.05]
[1725295354179,3.7825,132.18,132.17,29.10636552]
[1725295354375,3.7825,132.18,132.17,0.05636552]
[1725295361386,3.7836,132.14,132.12,29.05]
[1725295361888,3.7839,132.13,132.12,29.05]
[1725295362181,29.05,132.17,132.08,30.5086]
[1725295362378,0.0499108,132.14,132.11,0.0507613]
[1725295362580,3.7842,132.12,132.11,0.0507613]
[1725295377395,0.0499108,132.14,132.11,11.6907613]
[1725295377890,3.7839,132.13,132.11,11.6907613]
[1725295379194,0.0499108,132.14,132.11,0.0507613]
[1725295379195,3.7842,132.12,132.11,0.0507613]
[1725295381394,7.56059845,132.12,132.11,0.0507613]
[1725295382193,3.7842,132.12,132.11,0.0507613]
[1725295382906,5.2304,132.13,132.11,0.0507613]
[1725295383196,3.7841,132.13,132.11,0.0507613]
[1725295383395,3.7842,132.12,132.11,0.0507613]
[1725295383991,0.0499108,132.14,132.11,0.0507613]
[1725295383992,3.784,132.13,132.11,0.0507613]
[1725295384902,3.8337108,132.14,132.11,0.0507613]
[1725295385699,3.8337108,132.14,132.11,3.8351613]
[1725295386090,3.8337108,132.14,132.11,0.0507613]
[1725295386495,0.0499108,132.14,132.11,0.0507613]
[1725295386891,29.05,132.12,132.11,0.0507613]
[1725295387098,32.78287412,132.12,132.04,29.05]
[1725295387399,32.78287412,132.12,132.05,3.7862]
[1725295387601,3.7852,132.09,132.05,3.7862]
[1725295388004,0.05474281,132.08,132.06,0.05056263]
[1725295389104,3.84004281,132.08,132.06,0.05056263]
[1725295391513,3.7856,132.07,132.06,0.05056263]
[1725295392912,3.84024281,132.08,132.06,0.05056263]
[1725295393111,3.84024281,132.08,132.06,3.83646263]
[1725295393901,7.5665,132.16,132.06,3.83646263]
[1725295394103,1.4463,132.17,132.08,29.05]
[1725295394104,30.4963,132.17,132.08,29.05]
[1725295394799,1.4463,132.17,132.08,29.05]
[1725295395009,1.4463,132.17,132.11,0.05108569]
[1725295395010,0.05369845,132.14,132.11,0.05108569]
[1725295395202,3.7842,132.12,132.11,0.05108569]
[1725295397312,7.5521788,132.12,132.11,0.05108569]
[1725295400708,3.7679788,132.12,132.05,3.7861]
[1725295401007,29.05,132.12,132.05,3.7861]
[1725295401214,3.7854,132.08,132.04,32.8363]
[1725295401608,0.05729244,132.07,132.05,0.05143221]